[Event "*** SCC Grand Prix: Titled Tuesday Blitz"]
[Site "Chess.com"]
[Date "2020.08.11"]
[Round "7"]
[White "AttilaTurzo"]
[Black "diablanni"]
[Result "1/2-1/2"]
[WhiteElo "2443"]
[BlackElo "2335"]
[TimeControl "180+1"]
[EndTime "11:19:09 PDT"]
[Termination "Game drawn - insufficient material"]

1. e4 {[%clk 0:03:00.9]} 1... c5 {[%clk 0:02:55.3]} 2. Nf3 {[%clk 0:03:00.8]}
2... Nc6 {[%clk 0:02:54.3]} 3. d4 {[%clk 0:03:01.2]} 3... cxd4 {[%clk
0:02:54.6]} 4. Nxd4 {[%clk 0:03:02.1]} 4... g6 {[%clk 0:02:54]} 5. c4 {[%clk
0:03:01.5]} 5... Nf6 {[%clk 0:02:53.9]} 6. Nc3 {[%clk 0:03:01.3]} 6... d6 {[%clk
0:02:54.3]} 7. Be2 {[%clk 0:03:01.5]} 7... Nxd4 {[%clk 0:02:54]} 8. Qxd4 {[%clk
0:03:02.4]} 8... Bg7 {[%clk 0:02:54.5]} 9. O-O {[%clk 0:03:03]} 9... O-O {[%clk
0:02:54.2]} 10. Bd2 {[%clk 0:03:01.8]} 10... a5 {[%clk 0:02:53.5]} 11. Rae1
{[%clk 0:02:58.5]} 11... a4 {[%clk 0:02:46.3]} 12. Kh1 {[%clk 0:02:57.2]} 12...
Be6 {[%clk 0:02:44.7]} 13. f4 {[%clk 0:02:55.3]} 13... Nd5 {[%clk 0:02:15.5]}
14. Qd3 {[%clk 0:02:55.1]} 14... Nxc3 {[%clk 0:02:14.2]} 15. Bxc3 {[%clk
0:02:56]} 15... Bxc3 {[%clk 0:02:14.2]} 16. Qxc3 {[%clk 0:02:56.9]} 16... Qa5
{[%clk 0:02:14.4]} 17. Qd4 {[%clk 0:02:40.3]} 17... Rac8 {[%clk 0:01:45]} 18. f5
{[%clk 0:02:37]} 18... Bd7 {[%clk 0:01:36]} 19. f6 {[%clk 0:02:32.8]} 19... Qe5
{[%clk 0:01:33.5]} 20. Qxe5 {[%clk 0:02:07.2]} 20... dxe5 {[%clk 0:01:33.1]} 21.
fxe7 {[%clk 0:02:04.1]} 21... Rfe8 {[%clk 0:01:33]} 22. b4 {[%clk 0:01:57.2]}
22... axb3 {[%clk 0:01:29.8]} 23. axb3 {[%clk 0:01:58.1]} 23... Rxe7 {[%clk
0:01:28.5]} 24. b4 {[%clk 0:01:55.1]} 24... Ra8 {[%clk 0:01:25.8]} 25. Ra1
{[%clk 0:01:53.6]} 25... Ree8 {[%clk 0:01:21.8]} 26. c5 {[%clk 0:01:46.9]} 26...
Red8 {[%clk 0:01:16.6]} 27. Rxa8 {[%clk 0:01:42.9]} 27... Rxa8 {[%clk
0:01:16.5]} 28. Bc4 {[%clk 0:01:43.1]} 28... Be6 {[%clk 0:01:10.9]} 29. Bxe6
{[%clk 0:01:39.9]} 29... fxe6 {[%clk 0:01:11.8]} 30. Kg1 {[%clk 0:01:31.1]}
30... Ra2 {[%clk 0:01:11]} 31. Rf6 {[%clk 0:01:20.1]} 31... Rb2 {[%clk
0:01:10.5]} 32. Rxe6 {[%clk 0:01:19.2]} 32... Rxb4 {[%clk 0:01:11]} 33. Rxe5
{[%clk 0:01:19.6]} 33... Kf7 {[%clk 0:01:09.9]} 34. Kf2 {[%clk 0:01:11.6]} 34...
Rb2+ {[%clk 0:01:05.2]} 35. Kf3 {[%clk 0:01:11.6]} 35... Rb3+ {[%clk 0:01:05.5]}
36. Kf4 {[%clk 0:01:12]} 36... Rb2 {[%clk 0:01:04.2]} 37. Rd5 {[%clk 0:01:01.5]}
37... Ke7 {[%clk 0:01:04]} 38. Kf3 {[%clk 0:00:56.3]} 38... Rb3+ {[%clk
0:01:02.2]} 39. Kf4 {[%clk 0:00:51.4]} 39... Rb2 {[%clk 0:01:02.1]} 40. Rg5
{[%clk 0:00:48.3]} 40... Rc2 {[%clk 0:00:59.2]} 41. h4 {[%clk 0:00:46.4]} 41...
Kf6 {[%clk 0:00:52.7]} 42. g3 {[%clk 0:00:46]} 42... Rf2+ {[%clk 0:00:44.2]} 43.
Ke3 {[%clk 0:00:45]} 43... Rc2 {[%clk 0:00:40.5]} 44. Kd4 {[%clk 0:00:44.1]}
44... Rd2+ {[%clk 0:00:38.7]} 45. Kc4 {[%clk 0:00:43.8]} 45... Re2 {[%clk
0:00:38.2]} 46. Kd5 {[%clk 0:00:42.5]} 46... Rd2+ {[%clk 0:00:38]} 47. Kc4
{[%clk 0:00:42.9]} 47... Re2 {[%clk 0:00:38.1]} 48. Kd3 {[%clk 0:00:42.1]} 48...
Re1 {[%clk 0:00:35.8]} 49. Rd5 {[%clk 0:00:38.5]} 49... Ke7 {[%clk 0:00:35.8]}
50. h5 {[%clk 0:00:34.6]} 50... Rg1 {[%clk 0:00:34.5]} 51. Rg5 {[%clk
0:00:32.2]} 51... Kf6 {[%clk 0:00:34.5]} 52. Rd5 {[%clk 0:00:27.3]} 52... Rxg3+
{[%clk 0:00:33.8]} 53. Kd4 {[%clk 0:00:27.8]} 53... Rb3 {[%clk 0:00:31.4]} 54.
hxg6 {[%clk 0:00:26.4]} 54... hxg6 {[%clk 0:00:31.4]} 55. Rd6+ {[%clk
0:00:26.9]} 55... Kf7 {[%clk 0:00:30]} 56. Ke5 {[%clk 0:00:24.6]} 56... Rb2
{[%clk 0:00:17.4]} 57. Rd7+ {[%clk 0:00:24.1]} 57... Ke8 {[%clk 0:00:17.2]} 58.
Rg7 {[%clk 0:00:21.9]} 58... Rg2 {[%clk 0:00:10.6]} 59. Rxb7 {[%clk 0:00:20.7]}
59... Kd8 {[%clk 0:00:09.2]} 60. Ke6 {[%clk 0:00:20.2]} 60... Kc8 {[%clk
0:00:08.8]} 61. Rg7 {[%clk 0:00:19.7]} 61... Rg1 {[%clk 0:00:06.2]} 62. e5
{[%clk 0:00:18.6]} 62... Rg5 {[%clk 0:00:04.3]} 63. Kf6 {[%clk 0:00:18.6]} 63...
Rf5+ {[%clk 0:00:04.4]} 64. Kxg6 {[%clk 0:00:18.4]} 64... Rxe5 {[%clk
0:00:04.6]} 65. c6 {[%clk 0:00:14.7]} 65... Re6+ {[%clk 0:00:04.1]} 66. Kf5
{[%clk 0:00:13.6]} 66... Rxc6 {[%clk 0:00:05]} 67. Rg8+ {[%clk 0:00:14.5]} 67...
Kb7 {[%clk 0:00:05.1]} 68. Ke5 {[%clk 0:00:14.7]} 68... Rc7 {[%clk 0:00:05.4]}
69. Kd6 {[%clk 0:00:14.6]} 69... Rc6+ {[%clk 0:00:05.8]} 70. Kd5 {[%clk
0:00:14.9]} 70... Rc7 {[%clk 0:00:06.1]} 71. Rg6 {[%clk 0:00:14.3]} 71... Rc1
{[%clk 0:00:06.4]} 72. Rg7+ {[%clk 0:00:14]} 72... Rc7 {[%clk 0:00:06.9]} 73.
Rxc7+ {[%clk 0:00:13.1]} 73... Kxc7 {[%clk 0:00:07.3]} 1/2-1/2

[Event "*** SCC Grand Prix: Titled Tuesday Blitz"]
[Site "Chess.com"]
[Date "2020.08.11"]
[Round "7"]
[White "ClydeHillKid"]
[Black "bazar-wokzal"]
[Result "1/2-1/2"]
[WhiteElo "2329"]
[BlackElo "2462"]
[TimeControl "180+1"]
[EndTime "11:19:10 PDT"]
[Termination "Game drawn - insufficient material"]

1. e4 {[%clk 0:03:00.9]} 1... Nc6 {[%clk 0:02:59.5]} 2. Nf3 {[%clk 0:03:00]}
2... d5 {[%clk 0:02:59.7]} 3. exd5 {[%clk 0:02:59.8]} 3... Qxd5 {[%clk
0:02:59.8]} 4. Nc3 {[%clk 0:03:00.2]} 4... Qa5 {[%clk 0:02:59.9]} 5. Bc4 {[%clk
0:03:00]} 5... Bg4 {[%clk 0:02:59.8]} 6. h3 {[%clk 0:02:59.2]} 6... Bh5 {[%clk
0:02:59.6]} 7. a3 {[%clk 0:02:40.9]} 7... Nf6 {[%clk 0:02:58.2]} 8. Nb5 {[%clk
0:02:31.3]} 8... O-O-O {[%clk 0:02:53]} 9. c3 {[%clk 0:02:30.4]} 9... e5 {[%clk
0:02:48.4]} 10. b4 {[%clk 0:02:28.4]} 10... Qb6 {[%clk 0:02:46.9]} 11. a4 {[%clk
0:02:26.7]} 11... a5 {[%clk 0:02:40.6]} 12. g4 {[%clk 0:02:16.3]} 12... Bg6
{[%clk 0:02:37.7]} 13. O-O {[%clk 0:02:08.5]} 13... e4 {[%clk 0:02:34.6]} 14.
Nfd4 {[%clk 0:02:01.8]} 14... Nxd4 {[%clk 0:02:26.2]} 15. Nxd4 {[%clk
0:01:47.2]} 15... axb4 {[%clk 0:02:26.4]} 16. a5 {[%clk 0:01:46.2]} 16... Qc5
{[%clk 0:02:23.7]} 17. a6 {[%clk 0:01:43.2]} 17... Qxc4 {[%clk 0:01:59.6]} 18.
a7 {[%clk 0:01:42.8]} 18... Kd7 {[%clk 0:01:59.9]} 19. Qa4+ {[%clk 0:01:28.5]}
19... b5 {[%clk 0:01:35.7]} 20. Nxb5 {[%clk 0:01:26.7]} 20... Be7 {[%clk
0:01:17.4]} 21. Nd4+ {[%clk 0:01:12]} 21... c6 {[%clk 0:01:15]} 22. Bb2 {[%clk
0:00:26.3]} 22... Nd5 {[%clk 0:01:07.3]} 23. cxb4 {[%clk 0:00:23.5]} 23... Rc8
{[%clk 0:00:44.9]} 24. Rfc1 {[%clk 0:00:13.3]} 24... Qxb4 {[%clk 0:00:45.2]} 25.
Qa6 {[%clk 0:00:12.9]} 25... Qb6 {[%clk 0:00:42.8]} 26. Qc4 {[%clk 0:00:06.5]}
26... Bf6 {[%clk 0:00:35.8]} 27. Ba3 {[%clk 0:00:03.7]} 27... Bxd4 {[%clk
0:00:33.3]} 28. Rab1 {[%clk 0:00:02.3]} 28... Bxf2+ {[%clk 0:00:33]} 29. Kf1
{[%clk 0:00:02.2]} 29... Qd4 {[%clk 0:00:31.6]} 30. Qxd4 {[%clk 0:00:01.7]}
30... Bxd4 {[%clk 0:00:31]} 31. Bc5 {[%clk 0:00:02.6]} 31... Bxc5 {[%clk
0:00:30.7]} 32. Rxc5 {[%clk 0:00:03.5]} 32... Ra8 {[%clk 0:00:30.4]} 33. Rb7+
{[%clk 0:00:03.7]} 33... Kd6 {[%clk 0:00:30.8]} 34. Ra5 {[%clk 0:00:04.2]} 34...
e3 {[%clk 0:00:29.7]} 35. dxe3 {[%clk 0:00:04.7]} 35... Nxe3+ {[%clk 0:00:29.8]}
36. Ke2 {[%clk 0:00:05.6]} 36... Nc4 {[%clk 0:00:29.9]} 37. Ra1 {[%clk
0:00:05.4]} 37... Rhe8+ {[%clk 0:00:30.3]} 38. Kf2 {[%clk 0:00:04.4]} 38... Re7
{[%clk 0:00:30.7]} 39. Rd1+ {[%clk 0:00:04.4]} 39... Kc5 {[%clk 0:00:31.1]} 40.
Rxe7 {[%clk 0:00:04.2]} 40... Nb6 {[%clk 0:00:27.2]} 41. h4 {[%clk 0:00:03.3]}
41... h5 {[%clk 0:00:24.7]} 42. gxh5 {[%clk 0:00:03.2]} 42... Bxh5 {[%clk
0:00:23.2]} 43. Rc1+ {[%clk 0:00:04.1]} 43... Kd5 {[%clk 0:00:18.7]} 44. Rb7
{[%clk 0:00:04.3]} 44... Bg6 {[%clk 0:00:16.6]} 45. Rxb6 {[%clk 0:00:03.8]}
45... Rxa7 {[%clk 0:00:17.1]} 46. Rbxc6 {[%clk 0:00:04.3]} 46... Ra2+ {[%clk
0:00:15.4]} 47. Kg3 {[%clk 0:00:04.8]} 47... Ra3+ {[%clk 0:00:15.5]} 48. Kg4
{[%clk 0:00:04.8]} 48... Ra4+ {[%clk 0:00:15.8]} 49. Kg3 {[%clk 0:00:05]} 49...
Rd4 {[%clk 0:00:15.2]} 50. R6c3 {[%clk 0:00:04.9]} 50... Rd2 {[%clk 0:00:13.6]}
51. Re3 {[%clk 0:00:05]} 51... Kd4 {[%clk 0:00:13.5]} 52. Rce1 {[%clk
0:00:05.2]} 52... Bf5 {[%clk 0:00:12.5]} 53. R3e2 {[%clk 0:00:05.5]} 53... Rd3+
{[%clk 0:00:12.4]} 54. Kf4 {[%clk 0:00:05.6]} 54... Be6 {[%clk 0:00:12.7]} 55.
Re4+ {[%clk 0:00:04.1]} 55... Kd5 {[%clk 0:00:13]} 56. R1e3 {[%clk 0:00:04]}
56... Rd1 {[%clk 0:00:12.6]} 57. Re5+ {[%clk 0:00:04.2]} 57... Kd6 {[%clk
0:00:12.3]} 58. R5e4 {[%clk 0:00:04]} 58... Rh1 {[%clk 0:00:12]} 59. Kg3 {[%clk
0:00:04.6]} 59... g6 {[%clk 0:00:12.2]} 60. Re1 {[%clk 0:00:03.3]} 60... Rh3+
{[%clk 0:00:11.8]} 61. Kf2 {[%clk 0:00:03.5]} 61... Bd5 {[%clk 0:00:10.2]} 62.
R1e3 {[%clk 0:00:03.2]} 62... Rh2+ {[%clk 0:00:09.3]} 63. Kg3 {[%clk 0:00:03.1]}
63... Bxe4 {[%clk 0:00:08.9]} 64. Kxh2 {[%clk 0:00:02.9]} 64... Ke5 {[%clk
0:00:09.6]} 65. Kg3 {[%clk 0:00:03.5]} 65... f5 {[%clk 0:00:09.6]} 66. Re1
{[%clk 0:00:03.3]} 66... f4+ {[%clk 0:00:10.1]} 67. Kg4 {[%clk 0:00:03.8]} 67...
f3 {[%clk 0:00:08.1]} 68. Rf1 {[%clk 0:00:04.3]} 68... Kf6 {[%clk 0:00:07.2]}
69. Rxf3+ {[%clk 0:00:04.3]} 69... Bxf3+ {[%clk 0:00:07.6]} 70. Kxf3 {[%clk
0:00:05.2]} 70... Kf5 {[%clk 0:00:08.2]} 71. Kg3 {[%clk 0:00:05.9]} 71... Kf6
{[%clk 0:00:08.6]} 72. Kg4 {[%clk 0:00:06.3]} 72... Kg7 {[%clk 0:00:09.1]} 73.
h5 {[%clk 0:00:06.8]} 73... gxh5+ {[%clk 0:00:08.5]} 74. Kxh5 {[%clk 0:00:07.7]}
1/2-1/2

[Event "*** SCC Grand Prix: Titled Tuesday Blitz"]
[Site "Chess.com"]
[Date "2020.08.11"]
[Round "7"]
[White "adotand"]
[Black "viktorskliarov"]
[Result "0-1"]
[WhiteElo "2765"]
[BlackElo "2595"]
[TimeControl "180+1"]
[EndTime "11:19:19 PDT"]
[Termination "viktorskliarov won by resignation"]

1. e4 {[%clk 0:03:00.9]} 1... c5 {[%clk 0:02:59.2]} 2. Nf3 {[%clk 0:03:01.3]}
2... Nc6 {[%clk 0:02:58.9]} 3. Bb5 {[%clk 0:03:01.5]} 3... e6 {[%clk 0:02:58.6]}
4. O-O {[%clk 0:02:59.8]} 4... Nge7 {[%clk 0:02:57.7]} 5. d4 {[%clk 0:02:59.9]}
5... cxd4 {[%clk 0:02:57.5]} 6. Nxd4 {[%clk 0:03:00.3]} 6... Qb6 {[%clk
0:02:54.6]} 7. Nxc6 {[%clk 0:02:55.2]} 7... bxc6 {[%clk 0:02:54.6]} 8. Bd3
{[%clk 0:02:55.5]} 8... d5 {[%clk 0:02:54.3]} 9. Nc3 {[%clk 0:02:55.9]} 9... Ng6
{[%clk 0:02:50.4]} 10. b3 {[%clk 0:02:54]} 10... Be7 {[%clk 0:02:48.2]} 11. exd5
{[%clk 0:02:48]} 11... cxd5 {[%clk 0:02:47.4]} 12. Bb5+ {[%clk 0:02:47.3]} 12...
Kf8 {[%clk 0:02:45.2]} 13. Be3 {[%clk 0:02:46.6]} 13... Qc7 {[%clk 0:02:41.5]}
14. Ne2 {[%clk 0:02:33.8]} 14... Bd7 {[%clk 0:02:30.9]} 15. Bxd7 {[%clk
0:02:31.6]} 15... Qxd7 {[%clk 0:02:30.9]} 16. c4 {[%clk 0:02:32.2]} 16... Bf6
{[%clk 0:02:22.2]} 17. Rc1 {[%clk 0:02:27.3]} 17... Ne7 {[%clk 0:02:22]} 18.
cxd5 {[%clk 0:02:21.3]} 18... Nxd5 {[%clk 0:02:20.8]} 19. Bc5+ {[%clk
0:02:21.6]} 19... Kg8 {[%clk 0:02:19.9]} 20. Nf4 {[%clk 0:02:22.1]} 20... h5
{[%clk 0:01:35.1]} 21. Nxh5 {[%clk 0:02:14.5]} 21... Be5 {[%clk 0:01:31.1]} 22.
f4 {[%clk 0:02:12.5]} 22... Bc7 {[%clk 0:01:07.9]} 23. Ng3 {[%clk 0:01:42.6]}
23... Qd8 {[%clk 0:00:47.7]} 24. Qg4 {[%clk 0:01:40.1]} 24... Rh4 {[%clk
0:00:44.3]} 25. Qe2 {[%clk 0:01:12.6]} 25... Bxf4 {[%clk 0:00:42.3]} 26. Rc4
{[%clk 0:01:07.2]} 26... Bxg3 {[%clk 0:00:27.4]} 27. hxg3 {[%clk 0:01:06.5]}
27... Rxc4 {[%clk 0:00:27.7]} 28. bxc4 {[%clk 0:01:06.2]} 28... Nf6 {[%clk
0:00:27.3]} 29. Qe3 {[%clk 0:01:03.8]} 29... a6 {[%clk 0:00:26]} 30. Bd4 {[%clk
0:01:03.4]} 30... Rc8 {[%clk 0:00:24.9]} 31. Bxf6 {[%clk 0:01:02]} 31... gxf6
{[%clk 0:00:24.5]} 32. Qf4 {[%clk 0:01:02.6]} 32... Qb6+ {[%clk 0:00:15.9]} 33.
Kh2 {[%clk 0:01:02.1]} 33... Rc5 {[%clk 0:00:16.5]} 34. g4 {[%clk 0:01:00.9]}
34... Qc7 {[%clk 0:00:16.2]} 35. Qxc7 {[%clk 0:00:58]} 35... Rxc7 {[%clk
0:00:17.1]} 36. Rc1 {[%clk 0:00:56.4]} 36... Rc5 {[%clk 0:00:17]} 37. Kg3 {[%clk
0:00:56.6]} 37... Kg7 {[%clk 0:00:16.2]} 38. Kf4 {[%clk 0:00:57.1]} 38... e5+
{[%clk 0:00:16.3]} 39. Ke4 {[%clk 0:00:57.2]} 39... Kg6 {[%clk 0:00:16.2]} 40.
Kd3 {[%clk 0:00:57.3]} 40... Kg5 {[%clk 0:00:16.5]} 41. Rf1 {[%clk 0:00:57.7]}
41... Rc6 {[%clk 0:00:16.5]} 42. Rc1 {[%clk 0:00:51.6]} 42... Kxg4 {[%clk
0:00:16.4]} 43. c5 {[%clk 0:00:52]} 43... Kf5 {[%clk 0:00:16.5]} 44. Kc4 {[%clk
0:00:52.1]} 44... Ke6 {[%clk 0:00:16.7]} 45. Rd1 {[%clk 0:00:52.7]} 45... f5
{[%clk 0:00:17]} 46. Rh1 {[%clk 0:00:51.8]} 46... f4 {[%clk 0:00:16.6]} 47. Rh8
{[%clk 0:00:48.6]} 47... Rc7 {[%clk 0:00:14]} 48. Re8+ {[%clk 0:00:48.5]} 48...
Kf5 {[%clk 0:00:13.6]} 49. Kd5 {[%clk 0:00:48]} 49... Rd7+ {[%clk 0:00:13.7]}
50. Kc6 {[%clk 0:00:47.8]} 50... Rd2 {[%clk 0:00:13.6]} 51. Kb6 {[%clk
0:00:41.6]} 51... Rxg2 {[%clk 0:00:13.1]} 52. c6 {[%clk 0:00:42.1]} 52... Rxa2
{[%clk 0:00:12.8]} 53. c7 {[%clk 0:00:41.7]} 53... Rc2 {[%clk 0:00:13.3]} 54.
c8=Q+ {[%clk 0:00:34.6]} 54... Rxc8 {[%clk 0:00:12.4]} 55. Rxc8 {[%clk
0:00:35.5]} 55... f3 {[%clk 0:00:13.2]} 56. Rc1 {[%clk 0:00:33.1]} 56... Ke4
{[%clk 0:00:10.3]} 57. Kc5 {[%clk 0:00:33.5]} 57... Kd3 {[%clk 0:00:10.3]} 58.
Ra1 {[%clk 0:00:32.8]} 58... e4 {[%clk 0:00:10]} 59. Ra3+ {[%clk 0:00:33.3]}
59... Ke2 {[%clk 0:00:07.9]} 60. Kd4 {[%clk 0:00:33.6]} 60... f2 {[%clk
0:00:08]} 61. Ra2+ {[%clk 0:00:33.3]} 61... Kf3 {[%clk 0:00:08.2]} 62. Ra3+
{[%clk 0:00:33.5]} 62... Kg2 {[%clk 0:00:07.7]} 63. Ra2 {[%clk 0:00:33.2]} 63...
Kg1 {[%clk 0:00:08]} 64. Rxa6 {[%clk 0:00:24.2]} 64... f1=Q {[%clk 0:00:07.7]}
65. Ra3 {[%clk 0:00:24.7]} 65... Qf2+ {[%clk 0:00:05.2]} 66. Kxe4 {[%clk
0:00:22.5]} 66... f5+ {[%clk 0:00:05.7]} 67. Kd5 {[%clk 0:00:21]} 67... f4
{[%clk 0:00:05.5]} 68. Ke4 {[%clk 0:00:20.9]} 68... Kg2 {[%clk 0:00:05.8]} 69.
Rd3 {[%clk 0:00:20.2]} 69... f3 {[%clk 0:00:05.6]} 70. Kf4 {[%clk 0:00:20.4]}
70... Qe2 {[%clk 0:00:05.6]} 71. Re3 {[%clk 0:00:20.3]} 71... Qxe3+ {[%clk
0:00:05.6]} 72. Kxe3 {[%clk 0:00:21.2]} 72... f2 {[%clk 0:00:06.5]} 73. Ke4
{[%clk 0:00:22.1]} 73... f1=Q {[%clk 0:00:07.4]} 74. Kd5 {[%clk 0:00:23]} 74...
Qf3+ {[%clk 0:00:07.6]} 75. Ke5 {[%clk 0:00:22.9]} 75... Kg3 {[%clk 0:00:08.5]}
76. Kd4 {[%clk 0:00:22.6]} 76... Qf4+ {[%clk 0:00:09.4]} 77. Kc5 {[%clk
0:00:23.5]} 77... Kf3 {[%clk 0:00:09.7]} 78. Kd5 {[%clk 0:00:24.4]} 78... Ke3
{[%clk 0:00:10.3]} 79. Ke6 {[%clk 0:00:25.3]} 79... Kd4 {[%clk 0:00:10]} 0-1

[Event "*** SCC Grand Prix: Titled Tuesday Blitz"]
[Site "Chess.com"]
[Date "2020.08.11"]
[Round "7"]
[White "Fortitudine"]
[Black "rududuyk"]
[Result "1-0"]
[WhiteElo "2263"]
[BlackElo "2109"]
[TimeControl "180+1"]
[EndTime "11:19:20 PDT"]
[Termination "Fortitudine won on time"]

1. c4 {[%clk 0:03:00.9]} 1... e5 {[%clk 0:02:59.4]} 2. g3 {[%clk 0:03:00.4]}
2... Nc6 {[%clk 0:02:59.7]} 3. Bg2 {[%clk 0:03:00.3]} 3... Bc5 {[%clk
0:02:59.3]} 4. Nc3 {[%clk 0:02:59.8]} 4... f5 {[%clk 0:02:59.3]} 5. d3 {[%clk
0:02:51]} 5... Nf6 {[%clk 0:02:59.3]} 6. e3 {[%clk 0:02:46.6]} 6... d6 {[%clk
0:02:56.5]} 7. Nge2 {[%clk 0:02:45.2]} 7... O-O {[%clk 0:02:56]} 8. O-O {[%clk
0:02:44.2]} 8... Qe8 {[%clk 0:02:55.9]} 9. d4 {[%clk 0:02:43.1]} 9... Bb6 {[%clk
0:02:54.8]} 10. Na4 {[%clk 0:02:18.2]} 10... Kh8 {[%clk 0:02:31.7]} 11. a3
{[%clk 0:01:56.4]} 11... a5 {[%clk 0:01:15.5]} 12. Nxb6 {[%clk 0:01:54]} 12...
cxb6 {[%clk 0:01:16.4]} 13. dxe5 {[%clk 0:01:45.2]} 13... dxe5 {[%clk
0:01:17.3]} 14. Bd2 {[%clk 0:01:42.1]} 14... e4 {[%clk 0:01:06.6]} 15. Bc3
{[%clk 0:01:37.4]} 15... Ne5 {[%clk 0:01:04.6]} 16. Bxe5 {[%clk 0:01:37.5]}
16... Qxe5 {[%clk 0:01:03.4]} 17. Qd4 {[%clk 0:01:38]} 17... Qc7 {[%clk
0:00:55.5]} 18. Nf4 {[%clk 0:01:37.7]} 18... Rd8 {[%clk 0:00:45.4]} 19. Nd5
{[%clk 0:01:37.9]} 19... Nxd5 {[%clk 0:00:41]} 20. cxd5 {[%clk 0:01:38.8]} 20...
Be6 {[%clk 0:00:37.3]} 21. Rac1 {[%clk 0:01:33.5]} 21... Qd6 {[%clk 0:00:28.7]}
22. dxe6 {[%clk 0:01:31.7]} 22... Qxe6 {[%clk 0:00:28.4]} 23. Qc3 {[%clk
0:01:27.3]} 23... Rac8 {[%clk 0:00:25.8]} 24. Qe1 {[%clk 0:01:22.3]} 24... Rc6
{[%clk 0:00:20.5]} 25. Rxc6 {[%clk 0:01:21.7]} 25... bxc6 {[%clk 0:00:21.4]} 26.
Qc1 {[%clk 0:01:14.9]} 26... Qb3 {[%clk 0:00:17.3]} 27. Qc3 {[%clk 0:01:11.7]}
27... Qxc3 {[%clk 0:00:15.9]} 28. bxc3 {[%clk 0:01:12.6]} 28... Rd2 {[%clk
0:00:11.2]} 29. Rb1 {[%clk 0:01:12.6]} 29... b5 {[%clk 0:00:11.1]} 30. a4 {[%clk
0:01:08.3]} 30... bxa4 {[%clk 0:00:08.1]} 31. Ra1 {[%clk 0:01:08.1]} 31... Rc2
{[%clk 0:00:08.2]} 32. Rxa4 {[%clk 0:01:06.8]} 32... Rxc3 {[%clk 0:00:09.1]} 33.
Rxa5 {[%clk 0:01:06.8]} 33... Rc1+ {[%clk 0:00:09.4]} 34. Bf1 {[%clk 0:01:06.8]}
34... c5 {[%clk 0:00:10.3]} 35. Kg2 {[%clk 0:01:06.7]} 35... Kg8 {[%clk
0:00:09.6]} 36. Ra7 {[%clk 0:01:02.4]} 36... Kf8 {[%clk 0:00:08.4]} 37. Rc7
{[%clk 0:01:02.4]} 37... g6 {[%clk 0:00:07.8]} 38. h4 {[%clk 0:01:02.1]} 38...
h6 {[%clk 0:00:07]} 39. Bb5 {[%clk 0:00:59.3]} 39... Rc2 {[%clk 0:00:06]} 40. h5
{[%clk 0:00:53.5]} 40... gxh5 {[%clk 0:00:05.3]} 41. Bd7 {[%clk 0:00:51]} 41...
c4 {[%clk 0:00:04.6]} 42. Bxf5 {[%clk 0:00:50.9]} 42... c3 {[%clk 0:00:04.4]}
43. Bxe4 {[%clk 0:00:51]} 43... Rc1 {[%clk 0:00:05.3]} 44. Kf3 {[%clk
0:00:49.8]} 44... Ke8 {[%clk 0:00:05.4]} 45. Kf4 {[%clk 0:00:49.6]} 45... Kd8
{[%clk 0:00:06.3]} 46. Rc4 {[%clk 0:00:49.1]} 46... Kd7 {[%clk 0:00:05.8]} 47.
f3 {[%clk 0:00:49.2]} 47... Kd6 {[%clk 0:00:05.9]} 48. Rc6+ {[%clk 0:00:43]}
48... Kd7 {[%clk 0:00:06.1]} 49. Rxh6 {[%clk 0:00:41.3]} 49... Ra1 {[%clk
0:00:06.2]} 50. Rxh5 {[%clk 0:00:40.6]} 50... Ra4 {[%clk 0:00:06.5]} 51. Rc5
{[%clk 0:00:40.2]} 51... Ra3 {[%clk 0:00:06.6]} 52. g4 {[%clk 0:00:39.8]} 52...
Kd6 {[%clk 0:00:07.5]} 53. Rc4 {[%clk 0:00:38.5]} 53... Ke6 {[%clk 0:00:06.7]}
54. g5 {[%clk 0:00:38.4]} 54... Kf7 {[%clk 0:00:06.7]} 55. g6+ {[%clk 0:00:38]}
55... Kf6 {[%clk 0:00:06.4]} 56. Rc6+ {[%clk 0:00:38.1]} 56... Kg7 {[%clk
0:00:06.3]} 57. Kg5 {[%clk 0:00:38.3]} 57... Ra5+ {[%clk 0:00:05.7]} 58. Bf5
{[%clk 0:00:38.5]} 58... c2 {[%clk 0:00:04.4]} 59. Rc7+ {[%clk 0:00:37.8]} 59...
Kf8 {[%clk 0:00:04.1]} 60. Rxc2 {[%clk 0:00:37.7]} 60... Ke7 {[%clk 0:00:04]}
61. g7 {[%clk 0:00:32.5]} 61... Kf7 {[%clk 0:00:04.1]} 62. Rc7+ {[%clk
0:00:31.8]} 62... Kg8 {[%clk 0:00:03.9]} 63. e4 {[%clk 0:00:28.1]} 63... Rb5
{[%clk 0:00:02.4]} 64. f4 {[%clk 0:00:26.4]} 64... Ra5 {[%clk 0:00:02.2]} 65. e5
{[%clk 0:00:25.2]} 65... Ra6 {[%clk 0:00:01.2]} 66. e6 {[%clk 0:00:18.2]} 1-0